bitfinex/quotes_ETHUSD_20230405
["timestamp","ask_amount","ask_price","bid_price","bid_amount"]
[1680697707962,7.79468255,1912.2,1911.4,4.76033543]
[1680697709706,10.9103,1912.3,1911.4,4.76033543]
[1680697709707,9.8223,1912.3,1911.6,1.083]
[1680697709903,9.8203,1912.3,1911.6,1.083]
[1680697714583,9.8203,1912.3,1911.6,2.4684253]
[1680697714785,9.8203,1912.3,1911.7,1.083]
[1680697715694,9.8143,1912.3,1911.7,1.083]
[1680697716095,11.32327,1912.3,1911.7,1.083]
[1680697719029,2.63428255,1912.2,1911.6,0.02155793]
[1680697719198,2.63428255,1912.2,1911.5,18.51086737]
[1680697719199,2.81731255,1912.2,1911.5,9.21956737]
[1680697719520,0.44266149,1912.1,1911.5,9.21956737]
[1680697719716,0.66942324,1912.1,1911.5,3.008]
[1680697719919,0.06694232,1912.0,1911.5,3.006]
[1680697722186,0.25962149,1912.1,1911.5,3.006]
[1680697723092,0.25962149,1912.1,1911.5,4.36986737]
[1680697725294,0.25962149,1912.1,1911.6,1.36386737]
[1680697725499,0.25962149,1912.1,1911.5,4.37186737]
[1680697725703,0.25962149,1912.1,1911.6,1.36386737]
[1680697726712,0.22428799,1912.0,1911.6,1.36386737]
[1680697727707,2.63428255,1912.2,1911.6,1.36386737]
[1680697728648,11.33127,1912.3,1911.6,2.45786737]
[1680697728823,0.22475235,1912.1,1911.7,1.36386737]
[1680697729326,0.22475235,1912.1,1911.6,2.46386737]
[1680697729531,0.22475235,1912.1,1911.6,2.45786737]
[1680697730816,0.22475235,1912.1,1911.7,1.36386737]
[1680697739453,0.22475235,1912.1,1911.7,2.45786737]
[1680697742033,0.22475235,1912.1,1911.8,1.36386737]
[1680697743149,0.22475235,1912.1,1912.0,2.45786737]
[1680697743347,0.22475235,1912.1,1912.0,14.62626737]
[1680697743659,0.22475235,1912.1,1912.0,14.62826737]
[1680697743660,0.22082484,1912.1,1912.0,14.62826737]
[1680697743959,0.006,1912.6,1912.0,14.62826737]
[1680697744132,5.1495,1912.7,1912.1,1.094]
[1680697744731,0.31786926,1912.6,1912.1,1.094]
[1680697746857,5.1495,1912.7,1912.1,1.094]
[1680697749163,1.094,1912.3,1912.0,1.36586737]
[1680697749366,3.72828255,1912.3,1911.8,1.36386737]
[1680697749570,3.83768255,1912.3,1911.7,1.36386737]
[1680697749929,2.74368255,1912.3,1911.7,1.36386737]
[1680697750127,0.1094,1912.3,1911.7,1.36386737]
[1680697751161,2.92670255,1912.3,1911.6,1.36386737]
[1680697751362,0.29267026,1912.2,1911.6,1.36386737]
[1680697751800,0.29267026,1912.2,1911.7,1.36386737]
[1680697751952,0.6090986,1912.2,1911.7,1.36386737]
[1680697752151,0.6090986,1912.2,1911.6,1.36386737]
[1680697752350,2.69519241,1912.1,1911.6,1.36386737]
[1680697756943,2.69519241,1912.1,1911.7,1.36386737]
[1680697757376,2.69519241,1912.1,1911.6,1.3854253]
[1680697758476,2.69519241,1912.1,1911.6,1.36386737]
[1680697758677,2.69519241,1912.1,1911.5,4.37186737]
[1680697758678,1.36351924,1912.0,1911.5,4.37186737]
[1680697758888,3.99780179,1912.0,1911.5,1.36386737]
[1680697759178,0.39978018,1911.9,1911.5,1.36386737]
[1680697759789,0.39978018,1911.9,1911.4,6.1322028]
[1680697759995,2.63428255,1911.8,1911.4,6.1322028]
[1680697760977,10.71191924,1912.0,1911.4,6.1322028]
[1680697761185,2.63428255,1911.9,1911.5,1.36386737]
[1680697761383,0.26342826,1911.8,1911.4,6.1322028]
[1680697761554,2.89771081,1911.8,1911.4,6.1322028]
[1680697761758,2.63428255,1911.8,1911.4,6.1322028]
[1680697764857,0.24265122,1911.7,1911.4,6.1322028]
[1680697768286,0.24265122,1911.7,1911.4,4.76833543]
[1680697768487,0.24265122,1911.7,1911.4,4.76633543]
[1680697768795,2.63428255,1911.8,1911.4,6.1302028]
[1680697768997,2.63428255,1911.8,1911.4,4.76833543]
[1680697769171,2.63428255,1911.8,1911.4,4.76633543]
[1680697769373,2.89771081,1911.8,1911.4,4.76633543]
[1680697771889,0.002,1911.9,1911.4,6.1302028]
[1680697772095,9.61591924,1912.0,1911.4,6.1322028]
[1680697772096,9.60991924,1912.0,1911.4,6.1322028]
[1680697772293,12.24420179,1912.0,1911.4,6.1322028]
[1680697774677,9.60991924,1912.0,1911.4,6.1322028]
[1680697777198,0.96099192,1911.9,1911.4,6.1322028]
[1680697777403,0.96099192,1911.9,1911.4,4.76833543]
[1680697777701,0.96099192,1911.9,1911.4,4.76633543]
[1680697779799,0.96099192,1911.9,1911.4,6.1302028]
[1680697780006,12.25220179,1912.0,1911.9,0.00230227]
[1680697780303,12.25020179,1912.0,1911.9,0.00230227]
[1680697780468,12.24420179,1912.0,1911.9,0.00230227]
[1680697782594,12.25020179,1912.0,1911.9,0.00230227]
[1680697785107,12.2403285,1912.0,1911.9,0.00230227]
[1680697789307,9.60604595,1912.0,1911.9,0.00230227]
[1680697789487,9.3404,1912.0,1911.9,0.00230227]
[1680697792726,5.54340986,1912.1,1911.9,0.00230227]
[1680697792918,8.17569241,1912.1,1911.9,0.00230227]
[1680697796391,3.63428255,1912.0,1911.9,0.00230227]
[1680697798201,4.71728255,1912.0,1911.9,0.00230227]
[1680697798396,5.86165579,1912.0,1911.9,0.00230227]
[1680697799597,11.36965579,1912.0,1911.9,0.00230227]
[1680697800210,4.77865579,1912.0,1911.9,0.00230227]
[1680697800430,3.77865579,1912.0,1911.9,0.00230227]
[1680697801545,4.77865579,1912.0,1911.9,0.00230227]
[1680697804867,3.77865579,1912.0,1911.9,0.00230227]
[1680697807182,4.69565579,1912.0,1911.9,0.00230227]
[1680697807731,3.77865579,1912.0,1911.9,0.00230227]
[1680697807940,2.63428255,1912.0,1911.9,0.00230227]
[1680697808577,2.6304207,1912.0,1911.9,0.00230227]
[1680697814991,0.00122193,1911.9,1911.7,1.36386737]
[1680697815282,0.00122193,1911.9,1911.8,1.094]
[1680697815583,0.00122193,1911.9,1911.8,5.73647117]
[1680697815767,0.00122193,1911.9,1911.8,5.74447117]
[1680697815968,0.00122193,1911.9,1911.8,9.964117]
[1680697816389,0.00122193,1911.9,1911.8,13.55628255]
[1680697816894,0.00122193,1911.9,1911.8,16.76228255]
[1680697817239,0.00122193,1911.9,1911.8,18.67922317]
[1680697817443,0.00122193,1911.9,1911.8,19.27454668]
[1680697818270,0.00122193,1911.9,1911.8,19.79160712]
[1680697818656,0.00122193,1911.9,1911.8,19.81316279]
[1680697820287,0.00122193,1911.9,1911.8,17.89622217]
[1680697823077,0.00122193,1911.9,1911.8,19.53676466]
[1680697824279,0.00122193,1911.9,1911.8,17.89622217]
[1680697824991,0.00122193,1911.9,1911.8,19.53631879]
[1680697825309,15.3383,1913.0,1912.0,2.2]
[1680697825463,17.97858255,1913.0,1912.5,1.094]
[1680697825663,19.51261255,1913.0,1912.5,1.094]
[1680697830379,19.51261255,1913.0,1912.4,1.087]
[1680697830380,2.63428255,1912.9,1912.4,1.087]
[1680697830581,2.64028255,1912.9,1912.4,1.087]
[1680697830883,0.26402826,1912.8,1912.3,0.002]
[1680697831084,0.26402826,1912.8,1912.2,29.93]
[1680697831085,2.63428255,1912.7,1912.2,29.932]
[1680697831280,0.11342826,1912.6,1912.2,0.004]
[1680697831481,2.74771081,1912.6,1912.1,0.008]
[1680697831772,2.74771081,1912.6,1912.0,1.092]
[1680697833429,2.74771081,1912.6,1912.0,4.092]
[1680697835901,2.74771081,1912.6,1912.1,1.094]
[1680697836108,2.63428255,1912.5,1912.0,3.008]
[1680697836318,8.14228255,1912.5,1912.0,0.006]
[1680697836633,14.70242826,1912.4,1911.8,0.006]
[1680697836931,2.63428255,1912.3,1911.8,0.006]
[1680697837235,14.70242826,1912.4,1911.9,1.094]
[1680697837236,0.002,1912.4,1911.9,1.094]
[1680697837383,8.508,1912.8,1911.9,1.094]
[1680697837384,14.4357,1912.7,1912.1,1.094]
[1680697837715,2.63428255,1912.6,1912.1,1.094]
[1680697838240,2.63428255,1912.6,1912.0,3.0]
[1680697838241,2.63428255,1912.6,1912.0,3.008]
[1680697838377,2.63428255,1912.6,1912.0,4.094]
[1680697838578,2.63428255,1912.6,1912.0,4.096]
[1680697838783,2.63428255,1912.6,1912.0,4.1]
[1680697839695,2.63428255,1912.6,1912.0,3.006]
[1680697840199,1.094,1912.5,1912.0,0.006]
[1680697840393,2.74368255,1912.4,1911.8,3.006]
[1680697840598,8.17268255,1912.4,1911.8,3.006]
[1680697841618,8.06328255,1912.4,1911.8,3.02755567]
[1680697841818,8.06328255,1912.4,1911.8,4.11455567]
[1680697842242,5.429,1912.4,1911.9,1.094]
[1680697842412,5.429,1912.4,1911.9,4.1]
[1680697843005,0.008,1912.5,1911.9,1.1]
[1680697843260,5.2565,1912.6,1911.9,5.6386]
[1680697843414,0.008,1912.7,1912.0,4.086]
[1680697843612,14.4003,1912.9,1912.1,9.7626]
[1680697843810,4.07431255,1912.8,1912.1,9.7646]
[1680697846144,8.04528255,1913.1,1912.5,1.094]
[1680697846347,0.006,1913.1,1912.4,4.096]
[1680697846524,5.405,1913.3,1912.8,1.087]
[1680697846724,2.63628255,1913.4,1912.8,1.093]
[1680697846920,2.63628255,1913.4,1912.8,1.092]
[1680697846921,0.26362825,1913.4,1912.8,1.092]
[1680697848612,0.23932719,1913.3,1912.8,1.092]
[1680697848814,2.87360974,1913.3,1912.8,0.006]
[1680697849031,2.63428255,1913.2,1912.8,0.006]
[1680697849233,2.92164352,1913.2,1912.8,0.006]
[1680697849433,3.16062587,1913.2,1912.8,0.006]
[1680697849634,2.92164352,1913.2,1912.8,0.006]
[1680697850037,2.63428255,1913.2,1912.8,0.006]
[1680697850249,1.002,1913.4,1912.8,0.006]
[1680697850459,2.63428255,1913.3,1912.8,0.006]
[1680697850621,14.3676,1913.5,1912.8,0.006]
[1680697850951,18.54804255,1913.5,1912.8,0.006]
[1680697851255,17.00188255,1913.5,1912.8,0.006]
[1680697851416,1.0,1913.4,1912.8,0.006]
[1680697851616,17.00388255,1913.5,1912.8,0.006]
[1680697851847,17.00188255,1913.5,1912.8,0.006]
[1680697916373,4.33264081,1913.0,1912.9,5.402]
[1680697916534,4.33864081,1913.0,1912.9,5.402]
[1680697917117,4.52159081,1913.0,1912.9,5.402]
[1680697917360,5.52159081,1913.0,1912.9,5.402]
[1680697917561,5.33864081,1913.0,1912.9,5.402]
[1680697918334,4.33864081,1913.0,1912.9,5.402]
[1680697919722,3.25464081,1913.0,1912.9,5.402]
[1680697919924,4.34064081,1913.0,1912.9,5.402]
[1680697921631,9.84864081,1913.0,1912.9,5.402]
[1680697922146,10.03159081,1913.0,1912.9,5.402]
[1680697922542,10.03959081,1913.0,1912.9,5.402]
[1680697922743,14.03108542,1913.0,1912.9,5.408]
[1680697923350,14.03708542,1913.0,1912.9,5.402]
[1680697926957,14.9366103,1913.0,1912.9,5.402]
[1680697934553,14.8806103,1913.0,1912.9,5.408]
[1680697934870,13.8806103,1913.0,1912.9,5.408]
[1680697935054,13.3317503,1913.0,1912.9,5.408]
[1680697935260,6.34539204,1913.0,1912.9,5.408]
[1680697936041,6.52834204,1913.0,1912.9,5.408]
[1680697936271,12.03634204,1913.0,1912.9,5.408]
[1680697936577,11.85339204,1913.0,1912.9,5.408]
[1680697936751,12.03634204,1913.0,1912.9,5.408]
[1680697936947,13.53429106,1913.0,1912.9,5.408]
[1680697937154,13.00067618,1913.0,1912.9,5.408]
[1680697938550,12.81772618,1913.0,1912.9,5.408]
[1680697938755,13.00067618,1913.0,1912.9,5.408]
[1680697939485,0.5151854,1913.1,1912.9,5.408]
[1680697939725,2.63428255,1913.1,1912.9,5.408]
[1680697940043,2.63428255,1913.0,1912.9,5.408]
[1680697940239,3.44657081,1913.0,1912.9,5.408]
[1680697940480,2.89771081,1913.0,1912.9,5.408]
[1680697941168,3.12771081,1913.0,1912.9,5.408]
[1680697944885,3.12771081,1913.0,1912.9,5.408]
[1680697945666,3.31066081,1913.0,1912.9,5.408]
[1680697945886,3.12771081,1913.0,1912.9,5.408]
[1680697946492,2.63428255,1913.0,1912.9,5.408]
[1680697947381,2.86428255,1913.0,1912.9,5.408]
[1680697947593,2.81723255,1913.0,1912.9,5.408]
[1680697947793,2.86428255,1913.0,1912.9,5.408]
[1680697953187,8.55523255,1913.0,1912.9,5.408]
[1680697953424,10.5415448,1913.0,1912.9,5.408]
[1680697953623,5.508,1912.8,1912.3,9.8977]
[1680697953932,0.18301,1912.4,1912.3,0.009]
[1680697954136,2.87219455,1912.4,1912.2,0.006]
[1680697954437,2.87219455,1912.4,1912.0,0.006]
[1680697954438,3.41335255,1912.3,1912.0,0.006]
[1680697954641,0.34133526,1912.2,1911.9,0.006]
[1680697954786,2.81732255,1912.1,1911.7,0.006]
[1680697955011,3.49926833,1912.1,1911.7,0.006]
[1680697955225,0.23,1912.0,1911.7,0.006]
[1680697955422,2.63428255,1911.9,1911.7,0.006]
[1680697955911,2.63428255,1911.9,1911.6,0.006]
[1680697956311,0.23,1911.8,1911.6,0.006]
[1680697956517,2.63428255,1911.7,1911.5,0.006]
[1680697956815,2.92071081,1911.7,1911.5,0.006]
[1680697958520,2.92071081,1911.7,1911.4,0.006]
[1680697960819,2.92071081,1911.7,1911.5,0.418214]
[1680697961118,2.92071081,1911.7,1911.5,0.424214]
[1680697963340,3.10379081,1911.7,1911.5,0.424214]
[1680697963543,0.49346908,1911.6,1911.5,0.418214]
[1680697963848,4.12775163,1911.6,1911.5,0.418214]
[1680697964043,4.35775163,1911.6,1911.5,0.418214]
[1680697964557,4.72393163,1911.6,1911.5,0.418214]
[1680697965349,3.72393163,1911.6,1911.5,0.418214]
[1680697966940,2.94466163,1911.6,1911.5,0.418214]
[1680697967143,2.63428255,1911.6,1911.5,0.418214]
[1680697976226,2.63166901,1911.6,1911.5,0.418214]
[1680697977004,2.86166901,1911.6,1911.5,0.418214]
[1680697977957,3.86166901,1911.6,1911.5,0.418214]
[1680697978363,10.46366901,1911.6,1911.5,0.418214]
[1680697978519,14.95217874,1911.6,1911.5,0.418214]
[1680697980621,14.95217874,1911.6,1911.0,9.4097]
[1680697980867,1.0,1911.4,1911.0,9.4097]
[1680697981029,2.63428255,1911.3,1911.0,9.4097]
[1680697981246,2.63428255,1911.3,1911.0,0.109]
[1680697981446,8.74561081,1911.3,1911.0,0.1]
[1680697983373,2.63428255,1911.3,1911.0,0.1]
[1680697991769,8.14228255,1911.3,1911.0,0.1]
[1680697991932,1.23,1911.2,1911.0,0.1]
[1680697992138,2.63428255,1911.1,1911.0,0.1]
[1680697997188,5.3571,1911.3,1911.0,0.1]
[1680697997499,2.63428255,1911.2,1911.0,0.1]
[1680697998408,3.43342081,1911.2,1911.0,0.1]
[1680697999988,4.43342081,1911.2,1911.0,0.1]
[1680698000193,4.61655081,1911.2,1911.0,0.1]
[1680698000613,4.98281081,1911.2,1911.0,0.1]
[1680698000778,1.0,1911.1,1911.0,0.1]
[1680698000976,4.77894944,1911.1,1911.0,0.1]
[1680698001195,11.37094944,1911.1,1911.0,0.1]
[1680698001385,14.60094944,1911.1,1911.0,0.1]
[1680698001798,17.73394944,1911.1,1911.0,0.1]
[1680698003905,17.73994944,1911.1,1911.0,0.1]
[1680698005393,17.73394944,1911.1,1911.0,0.1]
[1680698012843,11.69644494,1911.0,1910.6,0.1]
[1680698013143,10.51051255,1910.7,1910.5,0.07122]
[1680698013348,32.39928381,1910.6,1910.5,0.07122]
[1680698013545,29.39928381,1910.6,1910.5,0.07122]
[1680698013745,32.39928381,1910.6,1910.5,0.07122]
[1680698014920,32.39928381,1910.6,1910.5,0.00022]
[1680698015551,32.91651309,1910.6,1910.5,0.00022]
[1680698022123,31.82351309,1910.6,1910.5,0.00022]
[1680698022749,33.43131309,1910.6,1910.5,0.00022]
[1680698024561,33.43131309,1910.6,1909.7,0.1]
[1680698024562,3.133,1910.0,1909.7,0.1]
[1680698024768,12.36928255,1909.8,1909.7,0.010819]
[1680698024969,13.65213255,1909.8,1909.7,0.010819]
[1680698025263,13.65213255,1909.8,1909.0,0.1]
[1680698025264,9.92397,1909.6,1909.0,0.1]
[1680698025435,8.641,1909.2,1909.0,0.1]
[1680698025637,9.55637255,1909.1,1909.0,0.1]
[1680698025937,9.78637255,1909.1,1909.0,0.1]
[1680698026566,14.87737255,1909.1,1909.0,0.1]
[1680698026862,12.78637255,1909.1,1909.0,0.1]
[1680698027061,15.91937255,1909.1,1909.0,0.1]
[1680698030378,16.43542095,1909.1,1909.0,0.1]
[1680698034046,16.43542095,1909.1,1908.5,0.1]
[1680698034257,8.14228255,1908.8,1908.5,0.1]
[1680698034493,9.42581255,1908.8,1908.5,0.1]
[1680698034658,0.18338,1908.6,1908.5,0.1]
[1680698034860,2.81766255,1908.6,1908.5,0.1]
[1680698035267,2.63428255,1908.6,1908.5,0.1]
[1680698035649,5.69137,1908.8,1908.5,0.1]
[1680698035650,0.002,1908.8,1908.5,0.1]
[1680698035857,2.63428255,1908.8,1908.7,1.094]
[1680698036169,2.63428255,1908.8,1908.6,1.084]
[1680698036484,2.63428255,1908.8,1908.5,1.194]
[1680698037957,2.63428255,1908.7,1908.5,0.1]
[1680698038155,2.81765255,1908.7,1908.5,0.1]
[1680698038894,2.63428255,1908.7,1908.5,0.1]
[1680698039096,2.81765255,1908.7,1908.5,0.1]
[1680698039275,3.49250063,1908.7,1908.5,0.1]
[1680698039473,3.63428255,1908.6,1908.3,0.002]
[1680698039800,3.63428255,1908.6,1907.9,0.009]
[1680698039801,9.65601255,1908.5,1907.9,0.009]
[1680698040105,8.14228255,1908.1,1907.8,0.005]
[1680698040300,6.0583,1908.0,1907.1,14.2343]
[1680698040508,6.0583,1908.0,1907.1,0.009]
[1680698040509,7.20483,1907.9,1907.1,0.009]
[1680698040801,5.508,1907.7,1907.0,0.1]
[1680698040986,3.141,1907.6,1907.5,1.094]
[1680698041162,0.006,1907.6,1907.5,1.094]
[1680698041377,0.006,1907.6,1907.4,1.28550789]
[1680698041378,2.63428255,1907.6,1907.4,1.28550789]
[1680698041592,2.86428255,1907.5,1907.4,1.28550789]
[1680698041790,2.86428255,1907.5,1907.0,0.106]
[1680698041791,3.96458906,1907.5,1907.0,0.1]
[1680698042006,2.63428255,1907.3,1907.1,1.086]
[1680698042205,0.55054,1907.2,1907.0,1.194]
[1680698042393,2.63428255,1907.1,1907.0,1.194]
[1680698042777,2.63428255,1907.1,1907.0,0.1]
[1680698043281,8.14228255,1907.1,1907.0,0.1]
[1680698043483,8.37228255,1907.1,1907.0,0.1]
[1680698043680,8.37228255,1907.1,1907.0,1.194]
[1680698043891,8.14828255,1907.1,1907.0,1.194]
[1680698044091,8.37828255,1907.1,1907.0,0.1]
[1680698044292,8.37228255,1907.1,1907.0,0.1]
[1680698044622,8.14228255,1907.1,1907.0,0.1]
[1680698045629,8.14828255,1907.1,1907.0,0.1]
[1680698045787,9.2056618,1907.1,1907.0,0.1]
[1680698046336,9.3891818,1907.1,1907.0,0.1]
[1680698046550,12.9012218,1907.1,1906.5,0.1]
[1680698046827,2.81785255,1906.6,1906.5,0.1]
[1680698046985,11.65042255,1906.6,1906.5,0.1]
[1680698047187,11.65042255,1906.6,1905.6,1.103]
[1680698047188,5.0,1904.7,1903.9,1.62167125]
[1680698047444,5.0,1904.7,1902.3,1.38567497]
[1680698047445,3.289,1904.0,1902.3,23.66028872]
[1680698047671,3.289,1904.0,1901.3,4.05612028]
[1680698047672,4.923,1903.6,1903.4,0.002]
[1680698047785,3.041,1902.4,1901.0,1.0]
[1680698047988,0.55207,1902.0,1901.0,0.554]
[1680698048236,10.25,1901.8,1901.0,0.554]
[1680698048417,1.093,1901.6,1901.0,0.554]
[1680698048613,3.041,1901.6,1901.0,0.554]
[1680698048812,0.18402,1902.0,1901.0,0.554]
[1680698048813,0.006,1902.0,1901.0,0.554]
[1680698049024,3.371,1902.0,1901.2,1.044]
[1680698049199,0.008,1902.2,1901.2,1.044]
[1680698049529,0.23,1902.3,1901.6,1.094]
[1680698049701,0.008,1903.2,1901.4,2.2]
[1680698049902,0.008,1903.2,1901.8,2.2]
[1680698049903,8.879,1903.2,1901.8,2.2]
[1680698050107,3.379,1903.2,1903.0,1.094]
[1680698050416,1.4595545,1902.9,1902.6,0.008]
[1680698050614,1.4595545,1902.9,1902.4,1.094]
[1680698050852,1.4595545,1902.9,1902.0,0.008]
[1680698050993,1.4595545,1902.9,1901.3,0.008]
[1680698050994,5.0,1902.3,1901.3,0.008]
[1680698051329,5.0,1902.3,1901.2,1.59239192]
[1680698051330,1.093,1901.8,1901.2,1.59239192]
[1680698051539,5.508,1902.1,1901.3,0.02167471]
[1680698051721,5.508,1902.1,1900.4,2.094]
[1680698051722,1.11567473,1901.9,1901.5,0.025]
[1680698052024,8.649,1901.7,1901.5,0.025]
[1680698052198,4.90976109,1901.6,1901.5,0.025]
[1680698052548,4.90976109,1901.6,1900.9,0.002]
[1680698052549,3.377,1901.6,1900.9,0.002]
[1680698052764,1.66151824,1902.4,1901.1,4.055]
[1680698052765,0.002,1901.9,1901.1,4.055]
[1680698052927,0.002,1901.9,1900.8,0.02339264]
[1680698052928,0.006,1902.4,1901.3,4.036]
[1680698053270,0.006,1902.5,1901.4,1.4036]
[1680698053454,0.006,1902.5,1901.7,4.022]
[1680698053661,0.02167473,1902.4,1901.6,0.002]
[1680698053978,5.02167473,1902.4,1900.7,0.83964408]
[1680698054126,14.649,1901.8,1900.6,11.0576]
[1680698054319,14.649,1901.8,1900.6,0.002]
[1680698054320,3.141,1901.5,1900.6,0.002]
[1680698054518,8.649,1901.3,1900.1,0.2855458]
[1680698054718,8.649,1901.3,1900.5,4.036]
[1680698054719,3.149,1901.3,1900.5,4.036]
[1680698054918,0.006,1901.3,1900.7,4.055]
[1680698055159,0.004,1901.5,1900.9,5.036]
[1680698055467,8.649,1901.9,1900.9,5.036]
[1680698055468,0.002,1901.9,1901.4,2.2]
[1680698055765,0.14595545,1902.8,1901.0,0.5036]
[1680698055766,0.14595545,1902.8,1901.8,2.2]
[1680698055935,1.4595545,1902.9,1901.9,0.22]
[1680698056136,4.6005545,1902.9,1901.9,0.22]
[1680698056331,1.4655545,1902.9,1901.9,0.22]
[1680698056541,5.0,1902.8,1901.6,0.002]
[1680698056767,5.0,1902.8,1901.4,0.008]
[1680698056768,5.0,1902.4,1901.4,0.008]
[1680698057076,5.0,1902.4,1901.1,4.70972232]
[1680698057077,3.141,1902.3,1901.3,1.0]
[1680698057383,0.008,1902.5,1901.7,2.2]
[1680698057566,6.4655545,1902.9,1901.7,5.2]
[1680698057736,6.4675545,1902.9,1901.7,5.202]
[1680698058055,1.64655545,1902.8,1901.8,0.5202]
[1680698058384,3.79355545,1902.8,1901.8,0.5202]
[1680698058552,0.65255545,1902.8,1901.8,0.5202]
[1680698058753,1.4655545,1902.9,1901.8,4.5562]
[1680698058955,1.4595545,1902.9,1902.0,4.055]
[1680698059269,1.4595545,1902.9,1902.1,0.4055]
[1680698059565,1.33122923,1902.9,1902.1,0.4115]
[1680698059766,1.3095545,1902.9,1902.1,0.006]
[1680698060483,5.0,1902.8,1902.1,0.006]
[1680698060769,3.641,1902.7,1902.0,0.006]
[1680698061071,5.0,1902.4,1901.7,0.006]
[1680698061248,3.0,1902.3,1901.7,0.006]
[1680698061606,11.141,1902.3,1901.6,0.004]
[1680698061872,0.02167473,1902.2,1901.4,0.006]
[1680698062170,1.13577473,1902.2,1901.4,0.006]
[1680698062473,4.27677473,1902.2,1901.3,0.006]
[1680698062679,4.27677473,1902.2,1901.3,0.4121]
[1680698062874,0.002,1902.3,1901.5,2.2]
[1680698063040,1.3115545,1902.9,1902.0,5.055]
[1680698063235,1.3095545,1902.9,1902.2,4.055]
[1680698063480,1.3095545,1902.9,1902.5,4.022]
[1680698063780,1.3095545,1902.9,1902.5,0.006]
[1680698063994,1.3095545,1902.9,1902.1,1.0]
[1680698063995,0.13095545,1902.8,1902.1,1.0]
[1680698064195,1.3095545,1902.9,1902.2,4.055]
[1680698064383,0.03471861,1902.8,1902.2,4.061]
[1680698064585,0.03471861,1902.8,1902.7,4.055]
[1680698064999,0.03471861,1902.8,1902.7,4.061]
[1680698065299,0.03471861,1902.8,1902.7,0.006]
[1680698065513,0.03471861,1902.8,1902.0,0.006]
[1680698065665,3.141,1902.6,1902.0,0.006]
[1680698065868,3.141,1902.6,1901.5,0.006]
[1680698065869,3.141,1902.2,1901.5,0.006]
[1680698066065,0.03471861,1902.1,1901.5,4.055]
[1680698066270,0.03471861,1902.1,1901.5,4.061]
[1680698066662,0.03471861,1902.1,1901.7,4.055]
[1680698066868,0.03471861,1902.1,1901.8,0.4055]
[1680698067069,0.03471861,1902.1,1901.8,0.006]
[1680698067397,0.03471861,1902.1,1901.7,4.055]
[1680698067398,5.508,1902.1,1901.7,0.006]
[1680698067584,7.58746286,1901.9,1901.4,0.006]
[1680698067786,7.58946286,1901.9,1901.2,0.006]
[1680698068005,0.002,1901.9,1901.2,0.02768454]
[1680698068180,3.371,1902.0,1901.2,0.02768454]
[1680698068371,5.508,1902.0,1901.2,0.02768454]
[1680698068571,5.51,1902.0,1901.2,0.02768454]
[1680698069081,8.651,1902.0,1901.2,0.02768454]
[1680698070302,5.508,1901.4,1901.2,0.006]
[1680698070513,5.508,1901.4,1899.7,6.67]
[1680698070514,17.06308,1901.3,1900.0,5.980538]
[1680698070670,5.0,1900.5,1900.0,1.7873838]
[1680698070872,5.0,1900.5,1899.6,0.1]
[1680698070873,9.238,1900.4,1899.6,0.106]
[1680698071078,6.06058,1900.2,1899.6,0.1]
[1680698071274,19.805,1899.7,1899.6,0.0355845]
[1680698071480,109.48044481,1899.7,1897.0,32.2]
[1680698071724,5.0,1899.0,1898.1,1.1629579]
[1680698071883,5.0,1899.0,1897.0,29.552]
[1680698071884,10.80299,1898.8,1897.0,29.552]
[1680698072225,5.508,1897.6,1897.5,0.67905934]
[1680698072513,4.409,1897.6,1897.0,9.201233]
[1680698072669,5.0,1897.4,1897.0,0.961233]
[1680698072869,5.0,1897.4,1896.1,0.16258576]
[1680698072870,0.008,1897.4,1896.1,0.16258576]
[1680698073071,0.18447,1897.3,1896.1,0.16258576]
[1680698073276,9.58,1896.9,1896.8,0.71852374]
[1680698073473,9.58,1896.9,1896.8,0.58299417]
[1680698073474,9.588,1896.9,1896.8,0.58299417]
[1680698073912,9.818,1896.9,1896.8,0.51931315]
[1680698074109,2.23368005,1896.9,1896.8,0.51931315]
[1680698074320,0.23,1896.9,1896.8,0.51931315]
[1680698074476,9.58,1897.1,1896.8,0.51331315]
[1680698074673,9.58,1897.1,1896.1,0.16258576]
[1680698074674,0.76564088,1896.7,1896.1,0.16258576]
[1680698075273,3.576,1896.8,1896.1,0.16258576]
[1680698075274,2.45918226,1896.8,1896.1,0.16258576]
[1680698075474,0.008,1897.1,1896.6,0.4321137]
[1680698075718,5.0,1898.6,1896.7,0.02173598]
[1680698075885,5.0,1898.6,1896.8,1.63258883]
[1680698076088,5.0,1898.7,1897.0,2.2]
[1680698076385,5.0,1898.9,1897.4,6.158]
[1680698076711,7.77689683,1899.6,1897.4,6.158]
[1680698076712,5.0,1899.4,1897.5,0.6158]
[1680698076880,5.0,1899.4,1897.5,0.5158]
[1680698076881,5.0,1898.7,1897.5,0.5158]
[1680698077211,5.0,1898.7,1897.1,6.517]
[1680698077212,5.0,1898.7,1897.1,1.55432317]
[1680698077385,5.0,1898.7,1897.0,2.1]
[1680698077386,5.0,1898.4,1897.0,2.1]
[1680698077721,5.0,1897.3,1896.8,1.37159188]
[1680698078024,16.583,1897.7,1896.8,1.36359188]
[1680698078175,0.26113556,1897.4,1896.5,0.0067322]
[1680698078373,5.0,1896.6,1896.5,0.0067322]
[1680698078572,0.002,1896.6,1896.5,0.0067322]
[1680698078909,1.0,1896.9,1896.5,0.0067322]
[1680698079131,1.0,1896.9,1896.5,6.3147322]
[1680698079318,5.0,1898.2,1896.8,6.297]